bitfinex-derivatives/quotes_ETHF0:USTF0_20250209
["timestamp","ask_amount","ask_price","bid_price","bid_amount"]
[1739129875313,3.2078,2631.0,2630.6,3.41204983]
[1739129875514,3.2552263,2631.3,2630.6,3.41204983]
[1739129875909,3.2552263,2631.3,2630.6,6.61984983]
[1739129876113,0.00570917,2631.2,2630.6,6.61984983]
[1739129876909,0.00570917,2631.2,2630.6,3.41204983]
[1739129876910,3.2078,2631.0,2630.6,3.41204983]
[1739129881718,0.00570917,2631.2,2630.6,6.61984983]
[1739129881920,0.00570917,2631.2,2630.9,3.41204983]
[1739129882327,0.00570917,2631.2,2630.6,6.61984983]
[1739129885120,2.91970917,2631.2,2630.6,6.61984983]
[1739129886425,2.91970917,2631.2,2630.9,3.41204983]
[1739129887229,0.00570917,2631.2,2631.0,3.2078]
[1739129888031,0.00570917,2631.2,2631.0,3.73977]
[1739129888335,3.2078,2632.0,2631.1,0.53196]
[1739129888535,3.2078,2632.0,2631.7,3.41204983]
[1739129889730,3.2078,2632.0,2631.6,0.00570917]
[1739129890428,3.73964,2631.7,2631.6,0.00570917]
[1739129890635,3.41204983,2631.6,2630.5,6.61984983]
[1739129890936,3.2078,2631.4,2630.5,6.61984983]
[1739129891332,3.2078,2631.4,2630.8,3.41204983]
[1739129891839,3.2078,2631.4,2630.8,3.417759]
[1739129892630,2.914,2631.5,2630.8,3.417759]
[1739129892631,2.914,2631.5,2631.1,3.41204983]
[1739129892831,3.2078,2631.7,2631.1,3.41204983]
[1739129895331,3.2078,2631.7,2630.8,3.417759]
[1739129895537,3.2078,2631.4,2630.8,0.00570917]
[1739129895841,3.2078,2631.1,2630.8,0.00570917]
[1739129896938,2.914,2631.0,2630.8,0.00570917]
[1739129901139,7.379,2631.0,2630.8,0.00570917]
[1739129902038,13.379,2631.0,2630.2,3.41204983]
[1739129902242,3.2078,2630.6,2630.2,3.41204983]
[1739129904041,0.00570917,2630.7,2630.2,3.41204983]
[1739129904348,0.00570917,2630.7,2630.1,0.00570917]
[1739129904546,3.2078,2630.6,2630.1,0.00570917]
[1739129905240,3.2078,2630.6,2630.2,3.41204983]
[1739129905549,0.00570917,2630.7,2630.2,3.41204983]
[1739129907347,0.00570917,2630.7,2630.3,3.2078]
[1739129907645,0.00570917,2630.7,2630.2,3.41204983]
[1739129908537,0.00570917,2630.7,2630.3,3.2078]
[1739129909038,0.00570917,2630.7,2630.2,3.41204983]
[1739129917454,3.2078,2630.6,2630.1,0.00570917]
[1739129920752,6.1218,2630.6,2630.1,0.00570917]
[1739129923253,3.2078,2630.3,2630.1,0.00570917]
[1739129926752,6.1218,2630.3,2630.1,0.00570917]
[1739129928254,0.53219,2630.2,2630.1,0.00570917]
[1739129928556,0.53229,2629.8,2629.1,0.57768242]
[1739129928757,3.2078,2629.3,2629.1,0.57768242]
[1739129928953,3.2078,2629.3,2628.9,3.2078]
[1739129931759,0.00570917,2629.4,2629.0,3.41204983]
[1739129932763,0.00570917,2629.4,2628.8,3.21350917]
[1739129932973,0.00570917,2629.4,2629.3,3.41204983]
[1739129933266,0.00570917,2629.4,2629.0,3.41204983]
[1739129934063,3.2078,2629.3,2628.8,0.00570917]
[1739129934567,3.2078,2629.0,2628.8,0.00570917]
[1739129934966,4.39840127,2628.9,2628.1,6.61984983]
[1739129935165,7.31240127,2628.9,2628.1,6.61984983]
[1739129936074,7.31240127,2628.9,2628.2,0.00570917]
[1739129936371,2.914,2628.9,2628.2,0.00570917]
[1739129937069,2.914,2628.9,2628.4,3.41204983]
[1739129938468,3.2078,2629.0,2628.4,3.41204983]
[1739129938773,3.2078,2629.0,2628.7,3.41204983]
[1739129938972,3.2078,2629.0,2628.4,3.41204983]
[1739129939375,3.2078,2628.7,2628.4,3.41204983]
[1739129940376,3.2078,2629.0,2628.4,3.41204983]
[1739129941875,3.2078,2629.0,2628.7,3.41204983]
[1739129942476,3.2078,2629.0,2628.4,3.41204983]
[1739129943078,3.2078,2628.6,2628.2,0.00570917]
[1739129943375,3.74038,2628.3,2628.2,0.00570917]
[1739129943577,8.30984983,2628.3,2627.1,3.41204983]
[1739129943774,3.2078,2627.5,2627.1,3.41204983]
[1739129943974,3.2078,2627.5,2626.9,0.57377769]
[1739129944379,3.2078,2627.2,2626.9,0.57377769]
[1739129944576,3.2078,2627.2,2626.8,0.00570917]
[1739129944777,3.2078,2626.9,2626.8,0.00570917]
[1739129947482,3.2078,2626.9,2626.8,3.417759]
[1739129948592,3.21350917,2627.3,2626.8,3.417759]
[1739129949493,3.21350917,2627.3,2627.1,3.41204983]
[1739129950391,0.00570917,2627.3,2627.1,3.41204983]
[1739129951796,0.00570917,2627.3,2627.2,3.97691355]
[1739129953089,0.00570917,2627.3,2627.2,7.18471355]
[1739129953586,0.00570917,2627.3,2627.2,13.18471355]
[1739129953782,3.2078,2627.8,2627.5,0.53273]
[1739129953990,3.2078,2628.2,2627.7,3.97691355]
[1739129954987,3.21350917,2628.2,2627.7,3.97691355]
[1739129956498,3.21350917,2628.2,2628.0,0.003097]
[1739129957200,0.00570917,2628.2,2628.1,3.97691355]
[1739129967707,3.2078,2628.8,2628.1,10.50953355]
[1739129967902,3.2078,2628.8,2628.6,3.97691355]
[1739129968804,3.2078,2628.8,2628.4,0.00570917]
[1739129969605,3.2078,2628.5,2628.4,0.00570917]
[1739129972713,3.2078,2628.8,2628.4,0.00570917]
[1739129973717,3.2078,2628.8,2628.5,3.41506278]
[1739129976417,2.91970917,2629.0,2628.5,3.41506278]
[1739129977217,0.00570917,2629.0,2628.5,3.41506278]
[1739129980913,3.2078,2628.8,2628.5,3.41506278]
[1739129982019,0.00570917,2629.0,2628.5,3.41506278]
[1739129984615,3.2078,2628.8,2628.4,0.00570917]
[1739129984816,3.2078,2628.5,2628.4,0.00570917]
[1739129985414,3.2078,2628.8,2628.4,0.00570917]
[1739129986116,3.2078,2628.5,2628.4,0.00570917]
[1739129989526,3.2078,2628.5,2628.0,0.003097]
[1739129989527,13.56836092,2628.5,2628.0,0.003097]
[1739129989720,3.2078,2628.1,2628.0,0.003097]
[1739129991423,9.2078,2628.1,2628.0,0.003097]
[1739129992313,3.2078,2628.1,2628.0,0.003097]
[1739129994524,3.2078,2628.4,2628.0,3.41815978]
[1739129995427,3.2078,2628.5,2628.0,3.41815978]
[1739129996528,3.2078,2628.2,2628.0,0.003097]
[1739130005527,0.53266,2627.9,2626.8,3.41506278]
[1739130005723,3.2078,2627.1,2626.8,3.41506278]
[1739130005929,3.2078,2627.1,2626.5,3.41506278]
[1739130006731,3.21350917,2627.1,2626.5,3.42077195]
[1739130008133,3.21350917,2627.1,2626.8,3.41506278]
[1739130008729,0.00570917,2627.1,2626.8,3.41506278]
[1739130009527,0.00570917,2627.1,2626.8,6.62286278]
[1739130011136,0.00570917,2627.1,2626.9,0.57544261]
[1739130011635,0.00570917,2627.1,2626.8,6.62286278]
[1739130012039,0.00570917,2627.1,2626.9,0.53284]
[1739130012227,0.00570917,2627.1,2626.8,10.03792556]
[1739130012536,0.00570917,2627.1,2627.0,0.53284]
[1739130012732,3.2078,2628.0,2627.1,0.53281]
[1739130012929,3.2078,2628.0,2627.7,3.41506278]
[1739130015929,3.2078,2628.0,2627.4,3.41506278]
[1739130016437,3.2078,2627.7,2627.4,3.41506278]
[1739130017943,4.8958,2628.0,2627.4,3.41506278]
[1739130020040,3.2078,2627.7,2627.1,3.41506278]
[1739130021145,3.2078,2627.4,2627.1,3.41506278]
[1739130025342,3.2078,2627.8,2627.1,3.41506278]
[1739130025546,3.2078,2627.8,2627.6,3.41506278]
[1739130025742,3.21350917,2628.1,2627.6,3.41506278]
[1739130026445,3.21350917,2628.1,2627.7,0.57695335]
[1739130027042,3.21350917,2628.1,2627.6,3.41506278]
[1739130027352,3.21350917,2628.1,2627.9,3.41506278]
[1739130042653,3.21350917,2628.1,2627.6,3.41506278]
[1739130043049,3.2078,2627.8,2627.6,3.41506278]
[1739130044557,0.00570917,2628.1,2627.6,3.41506278]
[1739130046355,3.2078,2627.9,2627.6,3.41506278]
[1739130046554,3.2078,2627.9,2627.3,6.62286278]
[1739130047155,3.2078,2627.9,2627.3,3.41506278]
[1739130047353,3.2078,2627.6,2627.3,3.41506278]
[1739130048667,3.2078,2627.9,2627.3,3.41506278]
[1739130049471,3.2078,2627.6,2627.3,3.41506278]
[1739130052074,0.00570917,2628.1,2627.4,3.2078]
[1739130052374,0.00570917,2628.1,2627.8,3.41506278]
[1739130053078,3.2078,2628.0,2627.8,3.41506278]
[1739130053278,3.2078,2628.0,2627.5,3.41506278]
[1739130053581,3.2078,2628.0,2627.6,0.57735732]
[1739130053973,3.2078,2628.0,2627.5,3.41506278]
[1739130054474,3.2078,2627.7,2627.5,3.41506278]
[1739130061584,3.2078,2627.7,2626.9,3.41506278]
[1739130062380,3.2078,2627.7,2627.0,0.57736855]
[1739130062682,3.2078,2627.2,2627.0,0.57736855]
[1739130062874,4.8888,2627.2,2626.5,0.00570917]
[1739130063079,3.2078,2626.8,2626.5,0.00570917]
[1739130066986,3.2078,2626.8,2626.6,3.41506278]
[1739130070487,3.2078,2626.8,2626.5,0.00570917]
[1739130073589,4.1166355,2626.7,2626.0,3.41506278]
[1739130073894,3.2078,2626.3,2626.0,3.41506278]
[1739130074396,3.2078,2626.3,2625.7,3.41506278]
[1739130074895,3.21350917,2626.3,2625.7,3.42077195]
[1739130080393,3.21350917,2626.3,2626.0,3.41506278]
[1739130082798,3.21350917,2626.3,2625.7,3.42077195]
[1739130087897,4.25228444,2626.2,2625.7,3.42077195]
[1739130091502,3.21350917,2626.3,2625.7,3.42077195]
[1739130092695,3.21350917,2626.3,2625.8,0.5773995]
[1739130093396,3.21350917,2626.3,2625.7,3.42077195]
[1739130094599,3.97996461,2626.2,2625.7,3.42077195]
[1739130094798,3.97996461,2626.2,2625.8,0.57752434]
[1739130095198,3.97996461,2626.2,2625.7,3.42077195]
[1739130095602,3.21350917,2626.3,2625.7,3.42077195]
[1739130096511,3.21350917,2626.3,2625.8,0.57771871]
[1739130096998,3.21350917,2626.3,2625.7,3.42077195]
[1739130098502,3.21350917,2626.3,2625.8,0.57796313]
[1739130098706,3.21350917,2626.3,2625.9,0.57796313]
[1739130099107,3.21350917,2626.3,2625.7,3.42077195]
[1739130099610,3.21350917,2626.3,2625.8,0.5784198]
[1739130099808,3.21350917,2626.3,2625.9,0.5784198]
[1739130100707,3.21350917,2626.3,2625.7,3.42077195]
[1739130101410,3.21350917,2626.3,2625.8,0.5789562]
[1739130102105,3.21350917,2626.3,2625.9,0.5789562]
[1739130102106,3.2078,2626.0,2625.9,0.5789562]
[1739130102505,3.2078,2626.0,2625.7,0.00570917]
[1739130102706,4.8798,2626.0,2625.7,0.00570917]
[1739130103308,4.3184053,2625.9,2625.7,0.00570917]
[1739130106005,7.73346808,2625.9,2625.7,0.00570917]
[1739130106410,0.53309,2625.8,2625.7,0.00570917]
[1739130106810,10.15291097,2625.8,2625.7,0.00570917]
[1739130107015,11.82791097,2625.8,2625.7,0.00570917]
[1739130107213,12.36100097,2625.8,2625.7,0.00570917]
[1739130107407,11.82791097,2625.8,2625.7,0.00570917]
[1739130107807,5.82791097,2625.8,2625.7,0.00570917]
[1739130108016,12.36100097,2625.8,2625.7,0.00570917]
[1739130108211,11.82791097,2625.8,2625.7,0.00570917]
[1739130109320,3.2078,2625.4,2623.6,6.62286278]
[1739130109619,3.2078,2624.2,2623.9,3.41506278]
[1739130109921,1.685,2624.6,2623.9,3.41506278]
[1739130110115,3.2078,2624.7,2624.2,3.41506278]
[1739130110417,0.00570917,2624.5,2624.2,3.41506278]
[1739130110816,0.00570917,2624.5,2623.8,3.2078]
[1739130110817,0.00570917,2624.5,2623.9,3.41506278]
[1739130111111,7.59289871,2624.4,2623.8,3.2078]
[1739130111316,1.689,2624.3,2623.8,3.2078]
[1739130112018,4.40779627,2624.2,2623.8,3.2078]
[1739130112217,3.2078,2624.1,2623.6,3.41506278]
[1739130114613,3.2078,2624.1,2623.4,3.2078]
[1739130114814,3.2078,2624.1,2623.3,3.41506278]
[1739130115121,3.2078,2623.7,2623.3,3.41506278]
[1739130117415,4.8968,2624.0,2623.6,3.41506278]
[1739130117616,3.2078,2624.0,2623.6,3.41506278]
[1739130118117,3.2078,2624.0,2623.0,6.62286278]
[1739130118118,3.2078,2623.7,2623.0,6.62286278]
[1739130119818,3.2078,2623.7,2623.3,3.41506278]
[1739130120019,3.2078,2624.0,2623.6,6.62286278]
[1739130120815,3.2078,2624.0,2623.6,3.41506278]
[1739130121921,3.2078,2624.4,2623.9,3.41506278]
[1739130122927,3.2078,2624.4,2623.7,3.2078]
[1739130122928,0.00570917,2624.5,2624.3,3.2078]
[1739130123925,0.00570917,2624.5,2624.3,3.74118]
[1739130124117,0.00570917,2624.5,2624.4,0.53337]
[1739130124518,0.00570917,2624.5,2624.3,3.2078]
[1739130124823,3.2078,2625.4,2624.3,9.2078]
[1739130125024,3.2078,2625.4,2625.0,3.41506278]
[1739130125429,4.07206524,2625.3,2624.7,6.62286278]
[1739130126026,3.2078,2625.1,2624.7,0.00570917]
[1739130126829,3.2078,2624.8,2624.7,0.00570917]
[1739130130441,3.2078,2624.8,2624.7,3.42077195]
[1739130130631,4.465,2625.2,2624.7,3.42077195]
[1739130131045,4.465,2625.2,2624.7,0.00570917]
[1739130131340,3.2078,2625.0,2624.7,0.00570917]
[1739130135343,6.62286278,2625.0,2624.7,0.00570917]
[1739130135647,0.53336,2624.5,2623.5,3.41506278]
[1739130135838,3.2078,2623.9,2623.5,3.41506278]
[1739130136242,3.2078,2623.9,2623.2,3.41506278]
[1739130136644,0.00570917,2623.8,2623.2,3.41506278]
[1739130138249,3.2078,2623.6,2623.2,3.41506278]
[1739130138445,0.00570917,2623.8,2623.2,3.41506278]
[1739130138745,1.70070917,2623.8,2623.2,3.41506278]
[1739130139338,3.2078,2623.6,2623.2,3.41506278]
[1739130139839,3.2078,2623.6,2622.9,6.62286278]
[1739130140951,1.70070917,2623.8,2623.2,3.41506278]
[1739130141347,1.70070917,2623.8,2623.3,3.2078]
[1739130141549,1.70070917,2623.8,2623.2,3.41506278]
[1739130142045,0.00570917,2623.8,2623.2,3.41506278]
[1739130142247,0.00570917,2623.8,2623.5,3.41506278]
[1739130144951,0.00570917,2623.8,2623.2,3.41506278]
[1739130147555,0.00570917,2623.8,2623.5,3.41506278]
[1739130150959,3.2078,2623.6,2622.9,6.62286278]
[1739130153957,3.2078,2623.6,2623.2,3.41506278]
[1739130154154,3.2078,2623.6,2623.5,3.41506278]
[1739130154356,0.00570917,2623.8,2623.5,3.41506278]
[1739130155751,0.00570917,2623.8,2623.7,3.2078]
[1739130157261,3.2078,2624.6,2623.7,9.2078]
[1739130157458,3.2078,2624.6,2624.1,3.41506278]
[1739130157660,4.9138,2624.9,2624.1,3.41506278]
[1739130158459,0.00570917,2624.8,2624.2,0.00570917]
[1739130158661,0.00570917,2624.8,2624.4,3.41506278]
[1739130163072,0.00570917,2624.8,2624.2,0.00570917]
[1739130164969,0.00570917,2624.8,2624.4,3.41506278]
[1739130168476,0.00570917,2624.8,2624.7,3.41506278]
[1739130175772,0.00570917,2624.8,2624.2,2.01003328]
[1739130175773,0.00570917,2624.8,2624.4,3.41506278]
[1739130176874,3.2078,2624.6,2624.4,3.41506278]
[1739130179374,0.00570917,2624.8,2624.4,3.41506278]
[1739130180982,0.00570917,2624.8,2624.2,0.00570917]
[1739130180983,3.2078,2624.6,2624.2,0.00570917]
[1739130181175,3.2078,2624.6,2624.5,0.00309701]
[1739130182379,0.00570917,2624.8,2624.5,0.00309701]
[1739130183279,0.00570917,2624.8,2624.7,3.41506278]
[1739130186685,3.2078,2625.5,2624.7,6.57255278]
[1739130186886,3.2078,2625.5,2625.1,3.41506278]
[1739130190685,3.2078,2625.5,2625.4,3.41506278]
[1739130190992,0.00570917,2625.6,2625.4,3.41506278]
[1739130202197,0.00570917,2625.6,2625.1,3.41506278]
[1739130202796,3.2078,2625.4,2624.5,3.41815979]
[1739130203099,3.2078,2625.1,2624.5,3.41815979]
[1739130204302,3.2078,2624.7,2624.5,3.41815979]
[1739130206602,3.94824278,2625.4,2624.5,3.41815979]
[1739130206905,3.2078,2624.8,2624.5,3.41815979]
[1739130212408,3.2078,2624.8,2624.5,0.00309701]
[1739130212700,4.40606308,2624.7,2624.5,0.00309701]
[1739130217303,0.53333,2624.6,2624.5,0.00309701]
[1739130217502,4.93938308,2624.7,2624.5,0.00309701]
[1739130218204,0.53339,2624.3,2624.2,0.00570917]
[1739130218401,0.53342,2624.2,2623.4,3.2078]
[1739130218603,3.2078,2623.8,2623.4,3.2078]
[1739130221907,3.2078,2623.8,2623.3,3.42077195]
[1739130226916,3.2078,2623.8,2623.6,3.41506278]
[1739130228417,0.00570917,2623.9,2623.6,3.41506278]
[1739130229418,3.2078,2623.8,2623.6,3.41506278]
[1739130230416,0.00570917,2623.9,2623.5,3.41506278]
[1739130230610,0.00570917,2623.9,2623.8,3.41506278]
[1739130236610,0.00570917,2623.9,2623.3,0.00570917]
[1739130236812,3.2078,2623.8,2623.3,0.00570917]
[1739130240822,3.2078,2623.8,2623.5,3.41506278]
[1739130241225,0.00570917,2623.9,2623.5,3.41506278]
[1739130241226,0.00570917,2623.9,2623.5,10.03792556]
[1739130241418,0.00570917,2623.9,2623.8,3.41506278]
[1739130241620,0.00570917,2623.9,2623.5,3.41506278]
[1739130242123,3.2078,2623.6,2623.5,3.41506278]
[1739130242519,0.00570917,2623.9,2623.5,3.41506278]
[1739130242520,3.21350917,2623.9,2623.5,3.41506278]
[1739130243624,3.21350917,2623.9,2623.8,3.41506278]
[1739130245025,3.21350917,2623.9,2623.5,3.41506278]
[1739130246331,3.21350917,2623.9,2623.8,3.41506278]
[1739130249632,0.00570917,2623.9,2623.8,3.41506278]
[1739130249931,3.21350917,2623.9,2623.8,3.41506278]
[1739130253332,0.00570917,2623.9,2623.8,3.41506278]
[1739130254635,0.00570917,2623.9,2623.8,9.41506278]
[1739130255229,3.2078,2624.6,2623.8,9.41506278]
[1739130255435,3.2078,2624.6,2624.3,3.41506278]
[1739130258037,0.00570917,2624.7,2624.3,3.41506278]
[1739130266852,3.2078,2624.5,2624.0,3.41506278]
[1739130267844,3.2078,2624.2,2624.0,3.41506278]
[1739130269446,3.2078,2624.2,2623.3,1.68170917]
[1739130269447,3.2078,2624.2,2623.7,3.41506278]
[1739130269838,3.2078,2623.9,2623.4,3.41506278]
[1739130271548,1.678,2624.0,2623.3,0.00570917]
[1739130271549,3.2078,2623.5,2623.3,0.00570917]
[1739130273148,3.2078,2623.5,2623.3,3.42077195]
[1739130273536,3.2078,2623.8,2623.3,3.42077195]
[1739130273740,3.2078,2623.8,2623.6,3.41506278]
[1739130274044,3.2078,2624.1,2623.6,3.41506278]
[1739130274243,3.2078,2624.1,2623.9,3.41506278]
[1739130279152,1.682,2624.3,2623.9,3.41506278]
[1739130279356,3.2078,2624.1,2623.9,3.41506278]
[1739130280652,1.682,2624.3,2623.9,3.41506278]
[1739130280853,3.2078,2624.1,2623.9,3.41506278]
[1739130284054,3.2078,2624.4,2623.9,3.41506278]
[1739130284253,3.2078,2624.4,2624.3,3.41506278]
[1739130285748,3.2078,2624.4,2624.0,3.41506278]
[1739130292166,0.00570917,2624.7,2624.0,3.41506278]
[1739130292364,3.2078,2624.3,2624.0,3.41506278]
[1739130294564,3.2078,2624.6,2624.0,3.41506278]
[1739130294770,0.00570917,2624.7,2624.5,3.41506278]
[1739130299365,3.2078,2624.6,2624.2,3.41506278]
[1739130301566,3.2078,2624.6,2623.9,6.62286278]
[1739130301773,3.2078,2624.3,2623.9,3.41506278]
[1739130303571,3.2078,2624.3,2624.2,3.41506278]
[1739130306370,3.2078,2624.3,2623.9,3.41506278]
[1739130306971,3.2078,2624.3,2624.0,0.5719933]
[1739130307369,3.2078,2624.3,2624.1,0.5719933]
[1739130307770,3.2078,2624.3,2623.9,3.41506278]
[1739130308467,3.2078,2624.3,2624.0,0.57208641]
[1739130309376,3.2078,2624.3,2624.1,0.57208641]
[1739130309679,3.2078,2624.3,2623.9,3.41506278]
[1739130310779,3.2078,2624.3,2624.0,0.57221307]
[1739130311676,3.2078,2624.3,2624.1,0.57221307]
[1739130312071,3.2078,2624.3,2623.9,3.41506278]
[1739130312975,3.2078,2624.3,2624.0,0.57232325]
[1739130313475,3.2078,2624.3,2623.6,6.62286278]
[1739130313880,3.2078,2624.3,2623.7,0.57233544]
[1739130314372,3.2078,2624.0,2623.7,0.57233544]
[1739130314677,4.8828,2624.0,2623.7,0.57233544]
[1739130314875,8.29786278,2624.0,2623.3,0.00570917]
[1739130315181,3.2078,2623.4,2623.3,0.00570917]
[1739130315677,18.55665037,2623.4,2622.4,3.41506278]
[1739130315872,3.2078,2622.8,2622.1,3.41506278]
[1739130316173,3.2078,2623.1,2622.7,3.41506278]
[1739130316576,3.2078,2623.1,2622.4,3.41506278]
[1739130316782,3.2078,2623.1,2622.6,0.00570917]
[1739130316979,6.62286278,2622.8,2622.6,0.00570917]
[1739130317275,0.53381,2622.3,2621.0,12.12315227]
[1739130317474,3.2078,2621.3,2621.0,8.91535227]
[1739130317977,4.9298,2621.6,2621.0,8.91535227]
[1739130318175,3.2078,2621.3,2621.0,8.91535227]
[1739130318381,3.41506278,2621.2,2621.0,3.79921478]
[1739130318586,1.747,2621.1,2621.0,1.89311478]
[1739130318878,1.753,2621.1,2621.0,1.89311478]
[1739130319386,6.01089476,2621.1,2621.0,1.89311478]
[1739130319579,12.01089476,2621.1,2621.0,1.89311478]
[1739130320473,12.01089476,2621.1,2620.6,0.00836702]
[1739130320676,6.62286278,2620.7,2619.4,0.00766831]
[1739130320871,3.41506278,2620.9,2619.4,0.00766831]
[1739130320872,3.2078,2619.5,2619.4,0.00766831]
[1739130321087,9.4688,2619.5,2619.4,0.00766831]
[1739130321279,19.6305368,2619.5,2619.4,0.00766831]
[1739130321481,19.6305368,2619.5,2619.4,0.05005186]
[1739130322172,13.6305368,2619.5,2619.4,0.05005186]
[1739130322377,19.6305368,2619.5,2619.4,0.05977297]
[1739130323084,15.1655368,2619.5,2619.4,0.05977297]
[1739130323684,19.17079231,2619.5,2619.4,0.05977297]
[1739130324273,19.17079231,2619.5,2618.5,0.08127747]
[1739130324481,3.2078,2618.6,2618.5,0.08127747]
[1739130324676,5.0208,2618.6,2618.5,0.08127747]
[1739130324880,9.04276293,2618.6,2618.5,0.08127747]
[1739130325079,7.22776293,2618.6,2618.5,0.08127747]
[1739130325482,3.2078,2618.6,2618.5,3.91055366]
[1739130325781,0.0057205,2619.7,2618.5,3.91055366]
[1739130325782,3.2078,2619.5,2618.5,7.11835366]
[1739130325987,3.2078,2619.5,2619.3,3.82927619]
[1739130326888,1.817,2619.6,2619.3,3.82927619]
[1739130327281,3.2135205,2619.7,2619.5,3.82927619]
[1739130327482,3.2135205,2619.7,2619.6,3.82927619]
[1739130327882,3.2135205,2619.7,2618.6,7.21305551]
[1739130328077,3.2078,2619.4,2619.3,3.82927619]
[1739130328283,9.03405551,2619.4,2618.7,3.82927619]
[1739130328492,3.2078,2618.9,2618.6,3.82927619]
[1739130329783,3.2078,2618.9,2618.7,0.04273104]
[1739130330593,3.2078,2619.2,2618.8,3.82927619]
[1739130330791,3.2078,2619.2,2619.1,3.82927619]
[1739130331084,4.01097601,2619.7,2619.1,3.82927619]
[1739130331085,3.2078,2619.5,2619.1,3.82927619]
[1739130331285,0.0057205,2619.7,2619.4,3.82927619]
[1739130331486,4.22468599,2619.6,2619.3,3.82927619]
[1739130331690,0.0057205,2619.7,2619.3,3.82927619]
[1739130331889,0.0057205,2619.7,2619.6,3.82927619]
[1739130332890,0.0057205,2619.7,2619.6,3.88138085]
[1739130337193,3.2078,2620.1,2619.6,13.62351085]
[1739130337489,3.2078,2620.1,2620.0,3.82927619]
[1739130337686,3.2078,2620.1,2620.0,3.9237581]
[1739130337891,3.2078,2620.5,2620.0,3.9237581]
[1739130338088,3.2078,2620.5,2620.4,3.82927619]
[1739130338291,3.2078,2620.9,2620.4,3.93348551]
[1739130338493,0.0057205,2620.5,2620.4,0.10420932]
[1739130338787,3.2078,2621.3,2620.4,11.14654102]
[1739130338984,3.2078,2621.3,2621.1,3.82927619]
[1739130339185,3.2078,2621.3,2621.2,0.10420932]
[1739130340688,3.2078,2621.3,2621.2,3.93348551]
[1739130340893,0.0057205,2621.5,2621.2,3.93348551]
[1739130341195,0.0057205,2621.5,2621.4,3.82927619]
[1739130341391,0.0057205,2621.5,2621.4,3.93348551]
[1739130342496,3.2078,2622.0,2621.4,7.14128551]
[1739130342689,3.2078,2622.0,2621.9,3.82927619]
[1739130343496,3.2078,2622.0,2621.9,3.93348551]
[1739130343698,3.2078,2622.0,2621.9,0.10420932]
[1739130343893,13.44156549,2622.0,2621.9,0.10420932]
[1739130344196,7.44156549,2622.0,2621.9,0.14657562]
[1739130344393,13.44156549,2622.0,2621.9,0.14657562]
[1739130345301,13.44156549,2622.0,2621.9,0.13915248]
[1739130345499,13.50529612,2622.0,2621.9,0.13915248]
[1739130345684,13.44156549,2622.0,2621.9,0.13915248]
[1739130347592,7.44156549,2622.0,2621.9,0.13915248]
[1739130349202,9.26456549,2622.0,2621.9,0.13915248]
[1739130349599,15.26456549,2622.0,2621.9,0.13915248]
[1739130350099,0.5339,2621.8,2621.7,0.0057205]
[1739130350293,4.60293612,2621.8,2621.7,0.0057205]
[1739130350497,14.72818127,2621.8,2621.7,0.0057205]
[1739130350899,14.72818127,2621.8,2621.7,0.04338932]
[1739130351196,0.53397,2621.5,2620.1,3.2078]
[1739130351404,3.2078,2620.7,2620.3,3.82927619]
[1739130351602,3.2078,2620.4,2620.3,3.82927619]
[1739130352396,3.2078,2620.4,2620.1,0.0057205]
[1739130352596,3.2078,2620.4,2620.1,3.83499669]
[1739130352894,7.50893995,2620.4,2620.1,0.0057205]
[1739130353513,0.0057205,2620.6,2620.3,3.82927619]
[1739130353803,0.0057205,2620.6,2620.5,3.82927619]
[1739130355101,4.05288644,2620.6,2620.1,0.0057205]
[1739130355302,3.2078,2620.4,2620.3,3.82927619]
[1739130358398,0.0057205,2620.6,2620.3,3.82927619]
[1739130358593,3.2135205,2620.6,2620.5,3.82927619]
[1739130358795,0.0057205,2620.6,2620.5,3.82927619]
[1739130359704,3.2135205,2620.6,2620.5,3.82927619]
[1739130362602,0.0057205,2620.6,2620.5,3.82927619]
[1739130363500,0.0057205,2620.6,2620.5,4.36343619]
[1739130363699,1.819,2621.2,2620.6,0.53414]
[1739130363901,3.2078,2621.5,2621.1,0.62147619]
[1739130364108,3.2078,2621.5,2621.4,0.62147619]
[1739130366407,15.83710064,2621.5,2620.6,3.2078]
[1739130366610,3.2078,2620.9,2620.3,3.2078]
[1739130366911,4.15904513,2620.8,2620.5,0.62147619]
[1739130368108,4.15904513,2620.8,2620.6,0.62147619]
[1739130371709,4.15904513,2620.8,2620.3,3.2078]
[1739130371919,3.2078,2621.2,2620.7,0.62147619]
[1739130372211,1.811,2621.4,2621.1,0.62147619]
[1739130372411,1.811,2621.4,2621.3,0.62147619]
[1739130372714,3.2078,2621.5,2621.3,0.62147619]
[1739130372907,1.8167205,2621.7,2621.4,0.62147619]
[1739130373109,0.0057205,2621.7,2621.6,0.62147619]
[1739130373507,3.2078,2622.6,2621.6,0.62147619]
[1739130373709,3.2078,2622.6,2622.3,0.62147619]
[1739130373915,3.9207426,2622.5,2622.3,0.62147619]
[1739130376115,3.9207426,2622.5,2622.1,0.0057205]
[1739130376312,3.2078,2622.3,2622.1,0.0057205]
[1739130376707,4.21309623,2622.2,2622.1,0.0057205]
[1739130377018,4.27692926,2622.2,2620.9,3.2078]
[1739130377218,4.00525551,2621.9,2621.7,0.62147619]
[1739130377516,11.88834528,2621.8,2621.0,0.62147619]
[1739130377811,7.21305551,2621.4,2621.0,0.62147619]
[1739130378111,7.21305551,2621.1,2620.9,0.0057205]
[1739130378516,4.01123592,2621.0,2620.9,0.0057205]
[1739130378819,8.47623592,2621.0,2620.0,3.2078]
[1739130379111,3.2078,2620.7,2620.3,0.62147619]
[1739130379312,4.00525551,2620.5,2620.3,0.62147619]
[1739130379723,4.11771965,2620.4,2620.3,0.62147619]
[1739130380017,1.818,2620.6,2620.3,0.62147619]
[1739130380711,4.20841109,2620.5,2620.3,0.62147619]
[1739130381108,4.20841109,2620.5,2620.1,0.0057205]
[1739130381109,4.20841109,2620.5,2620.4,0.62147619]
[1739130381419,3.2078,2620.7,2620.4,0.62147619]
[1739130381718,3.2078,2620.7,2620.6,0.62147619]
[1739130383211,7.3456555,2620.7,2620.1,0.0057205]
[1739130383412,7.3456555,2620.7,2620.3,0.62147619]
[1739130384114,7.3456555,2620.7,2620.6,0.62147619]
[1739130384309,1.818,2621.0,2620.6,0.62147619]
[1739130384515,1.818,2621.0,2620.9,0.62147619]
[1739130385119,1.818,2621.0,2620.1,0.0057205]
[1739130385321,1.818,2621.0,2620.9,0.62147619]
[1739130385712,0.0057205,2621.3,2620.9,0.62147619]
[1739130385912,0.0057205,2621.3,2621.2,0.62147619]
[1739130391318,3.2078,2622.2,2621.2,6.0]